[Event "Titled Tuesday Blitz May 24 Early 2022"]
[White "Xiong, Jeffery"]
[Black "Shimanov, Aleksandr"]
[WhiteFideId "2047640"]
[BlackFideId "4198603"]
[WhiteElo "2727"]
[BlackElo "2605"]
[Result "1/2-1/2"]
[Round "07"]
[TimeControl "180+1"]
[Date "2022.05.24"]
[WhiteClock "0:00:07"]
[BlackClock "0:00:06"]

1. e4 {[%clk 0:02:56]}  d5 {[%clk 0:03:00]} 2. exd5 {[%clk 0:02:57]}  Qxd5 {[%clk 0:03:01]} 3. Nc3 {[%clk 0:02:57]}  Qe5+ {[%clk 0:03:01]} 4. Be2 {[%clk 0:02:51]}  Bg4 {[%clk 0:03:01]} 5. d4 {[%clk 0:02:51]}  Bxe2 {[%clk 0:03:01]} 6. Ngxe2 {[%clk 0:02:52]}  Qa5 {[%clk 0:03:01]} 7. d5 {[%clk 0:02:41]}  c6 {[%clk 0:03:01]} 8. b4 {[%clk 0:02:41]}  Qd8 {[%clk 0:03:01]} 9. Bf4 {[%clk 0:02:40]}  Nf6 {[%clk 0:03:01]} 10. dxc6 {[%clk 0:02:18]}  Nxc6 {[%clk 0:02:35]} 11. a3 {[%clk 0:02:18]}  e6 {[%clk 0:02:22]} 12. O-O {[%clk 0:02:14]}  Be7 {[%clk 0:02:22]} 13. Nb5 {[%clk 0:02:13]}  Nd5 {[%clk 0:02:09]} 14. c4 {[%clk 0:02:03]}  Nxf4 {[%clk 0:02:09]} 15. Nxf4 {[%clk 0:02:04]}  O-O {[%clk 0:02:09]} 16. Qf3 {[%clk 0:01:59]}  a5 {[%clk 0:02:03]} 17. Rad1 {[%clk 0:01:49]}  Qb6 {[%clk 0:02:01]} 18. bxa5 {[%clk 0:01:44]}  Nxa5 {[%clk 0:01:57]} 19. Rd7 {[%clk 0:01:44]}  Bg5 {[%clk 0:01:23]} 20. Nh5 {[%clk 0:01:29]}  g6 {[%clk 0:00:59]} 21. Qg3 {[%clk 0:01:12]}  Qc5 {[%clk 0:00:55]} 22. Nd6 {[%clk 0:01:11]}  Bd8 {[%clk 0:00:41]} 23. Ne4 {[%clk 0:01:04]}  Qxh5 {[%clk 0:00:32]} 24. Rxd8 {[%clk 0:01:04]}  Qf5 {[%clk 0:00:33]} 25. Rxf8+ {[%clk 0:00:42]}  Rxf8 {[%clk 0:00:32]} 26. Re1 {[%clk 0:00:43]}  Nc6 {[%clk 0:00:08]} 27. Qc7 {[%clk 0:00:34]}  Qa5 {[%clk 0:00:07]} 28. Qxa5 {[%clk 0:00:27]}  Nxa5 {[%clk 0:00:08]} 29. c5 {[%clk 0:00:28]}  Rd8 {[%clk 0:00:06]} 30. Rb1 {[%clk 0:00:28]}  Rd3 {[%clk 0:00:05]} 31. f3 {[%clk 0:00:18]}  Rxa3 {[%clk 0:00:05]} 32. Kf2 {[%clk 0:00:18]}  Kg7 {[%clk 0:00:05]} 33. g4 {[%clk 0:00:18]}  h6 {[%clk 0:00:04]} 34. h4 {[%clk 0:00:17]}  g5 {[%clk 0:00:03]} 35. hxg5 {[%clk 0:00:17]}  hxg5 {[%clk 0:00:04]} 36. Nxg5 {[%clk 0:00:18]}  Rc3 {[%clk 0:00:04]} 37. Ne4 {[%clk 0:00:18]}  Rc2+ {[%clk 0:00:04]} 38. Kg3 {[%clk 0:00:19]}  f5 {[%clk 0:00:04]} 39. gxf5 {[%clk 0:00:08]}  exf5 {[%clk 0:00:05]} 40. Rb5 {[%clk 0:00:05]}  fxe4 {[%clk 0:00:05]} 41. Rxa5 {[%clk 0:00:05]}  exf3 {[%clk 0:00:05]} 42. Kxf3 {[%clk 0:00:04]}  Kf6 {[%clk 0:00:05]} 43. Rb5 {[%clk 0:00:05]}  Ke6 {[%clk 0:00:04]} 44. Ke4 {[%clk 0:00:05]}  Rc4+ {[%clk 0:00:03]} 45. Kd3 {[%clk 0:00:06]}  Rc1 {[%clk 0:00:04]} 46. Kd4 {[%clk 0:00:06]}  Rd1+ {[%clk 0:00:04]} 47. Kc4 {[%clk 0:00:07]}  Rc1+ {[%clk 0:00:04]} 48. Kd4 {[%clk 0:00:07]}  Rd1+ {[%clk 0:00:05]} 49. Kc3 {[%clk 0:00:08]}  Rc1+ {[%clk 0:00:05]} 50. Kd2 {[%clk 0:00:08]}  Rc4 {[%clk 0:00:05]} 51. Kd3 {[%clk 0:00:08]}  Rc1 {[%clk 0:00:06]} 52. Rb6+ {[%clk 0:00:04]}  Kd5 {[%clk 0:00:05]} 53. Rxb7 {[%clk 0:00:05]}  Rxc5 {[%clk 0:00:06]} 54. Rb4 {[%clk 0:00:05]}  Kd6 {[%clk 0:00:05]} 55. Rd4+ {[%clk 0:00:05]}  Rd5 {[%clk 0:00:05]} 56. Ke4 {[%clk 0:00:06]}  Rxd4+ {[%clk 0:00:06]} 57. Kxd4 {[%clk 0:00:07]} 1/2-1/2


[Site "https://www.chess.com"]

[Event "Titled Tuesday Blitz May 24 Early 2022"]
[White "Ajay Krishna, S"]
[Black "Quirke, Jeffrey"]
[WhiteFideId "5096430"]
[BlackFideId "2013029"]
[WhiteElo "2247"]
[BlackElo "2239"]
[Result "1-0"]
[Round "08"]
[TimeControl "180+1"]
[Date "2022.05.25"]
[WhiteClock "0:00:25"]
[BlackClock "0:00:13"]

1. d4 {[%clk 0:03:00]}  d5 {[%clk 0:02:59]} 2. c4 {[%clk 0:02:59]}  e6 {[%clk 0:02:59]} 3. Nf3 {[%clk 0:02:59]}  h6 {[%clk 0:02:59]} 4. Nc3 {[%clk 0:02:57]}  Nf6 {[%clk 0:02:59]} 5. Bf4 {[%clk 0:02:55]}  dxc4 {[%clk 0:02:48]} 6. e3 {[%clk 0:02:53]}  Nd5 {[%clk 0:02:39]} 7. Bxc4 {[%clk 0:02:29]}  Nxf4 {[%clk 0:02:38]} 8. exf4 {[%clk 0:02:29]}  Be7 {[%clk 0:02:36]} 9. O-O {[%clk 0:02:28]}  O-O {[%clk 0:02:36]} 10. Rc1 {[%clk 0:02:25]}  c6 {[%clk 0:02:27]} 11. a3 {[%clk 0:02:24]}  Nd7 {[%clk 0:02:20]} 12. b4 {[%clk 0:02:24]}  Nf6 {[%clk 0:02:20]} 13. Bd3 {[%clk 0:02:16]}  b6 {[%clk 0:02:14]} 14. Re1 {[%clk 0:02:14]}  Bb7 {[%clk 0:02:13]} 15. Bb1 {[%clk 0:02:13]}  a5 {[%clk 0:02:06]} 16. Qb3 {[%clk 0:02:04]}  axb4 {[%clk 0:02:03]} 17. axb4 {[%clk 0:02:05]}  Qd6 {[%clk 0:01:41]} 18. b5 {[%clk 0:01:38]}  Qxf4 {[%clk 0:01:40]} 19. Ne4 {[%clk 0:01:25]}  cxb5 {[%clk 0:01:25]} 20. g3 {[%clk 0:01:11]}  Ra3 {[%clk 0:01:07]} 21. Qxa3 {[%clk 0:00:55]}  Bxa3 {[%clk 0:01:05]} 22. gxf4 {[%clk 0:00:55]}  Bxc1 {[%clk 0:01:06]} 23. Nxf6+ {[%clk 0:00:54]}  gxf6 {[%clk 0:01:07]} 24. Rxc1 {[%clk 0:00:53]}  Bxf3 {[%clk 0:01:06]} 25. Rc3 {[%clk 0:00:51]}  Bd5 {[%clk 0:01:03]} 26. f3 {[%clk 0:00:50]}  Ra8 {[%clk 0:01:02]} 27. Be4 {[%clk 0:00:49]}  b4 {[%clk 0:00:55]} 28. Rc1 {[%clk 0:00:48]}  Bxe4 {[%clk 0:00:48]} 29. fxe4 {[%clk 0:00:48]}  Rd8 {[%clk 0:00:49]} 30. Rc4 {[%clk 0:00:47]}  b3 {[%clk 0:00:48]} 31. Rb4 {[%clk 0:00:47]}  b2 {[%clk 0:00:48]} 32. Kf2 {[%clk 0:00:47]}  b1=Q {[%clk 0:00:48]} 33. Rxb1 {[%clk 0:00:47]}  Rxd4 {[%clk 0:00:49]} 34. Ke3 {[%clk 0:00:48]}  Rd6 {[%clk 0:00:47]} 35. h4 {[%clk 0:00:43]}  h5 {[%clk 0:00:46]} 36. Rb5 {[%clk 0:00:43]}  Rc6 {[%clk 0:00:31]} 37. Rxh5 {[%clk 0:00:42]}  Rc3+ {[%clk 0:00:23]} 38. Ke2 {[%clk 0:00:39]}  Rh3 {[%clk 0:00:21]} 39. Rb5 {[%clk 0:00:32]}  Rxh4 {[%clk 0:00:20]} 40. Kf3 {[%clk 0:00:32]}  Rh3+ {[%clk 0:00:19]} 41. Kf2 {[%clk 0:00:32]}  Kg7 {[%clk 0:00:17]} 42. Rxb6 {[%clk 0:00:32]}  Ra3 {[%clk 0:00:15]} 43. Rb5 {[%clk 0:00:30]}  Kg6 {[%clk 0:00:16]} 44. f5+ {[%clk 0:00:28]}  exf5 {[%clk 0:00:15]} 45. Rxf5 {[%clk 0:00:28]}  Rb3 {[%clk 0:00:14]} 46. Ke2 {[%clk 0:00:28]}  Ra3 {[%clk 0:00:14]} 47. Kf2 {[%clk 0:00:28]}  Rb3 {[%clk 0:00:14]} 48. Ke2 {[%clk 0:00:27]}  Ra3 {[%clk 0:00:15]} 49. Rf1 {[%clk 0:00:27]}  Rb3 {[%clk 0:00:15]} 50. Rg1+ {[%clk 0:00:26]}  Kh6 {[%clk 0:00:15]} 51. Rg8 {[%clk 0:00:26]}  Rh3 {[%clk 0:00:13]} 52. Rh8+ {[%clk 0:00:25]} 1-0


[Site "https://www.chess.com"]

[Event "Titled Tuesday Blitz May 24 Early 2022"]
[White "Avramidou, Anastasia"]
[Black "Ovezdurdyyeva, Jemal"]
[WhiteFideId "4239873"]
[BlackFideId "14001888"]
[WhiteElo "2183"]
[BlackElo "1946"]
[Result "0-1"]
[Round "08"]
[TimeControl "180+1"]
[Date "2022.05.25"]
[WhiteClock "0:00:01"]
[BlackClock "0:00:08"]

1. Nf3 {[%clk 0:02:55]}  Nf6 {[%clk 0:02:59]} 2. d4 {[%clk 0:02:55]}  g6 {[%clk 0:02:59]} 3. c4 {[%clk 0:02:55]}  d5 {[%clk 0:02:59]} 4. Nc3 {[%clk 0:02:56]}  Bg7 {[%clk 0:02:58]} 5. h4 {[%clk 0:02:56]}  h5 {[%clk 0:02:56]} 6. Bg5 {[%clk 0:02:55]}  c6 {[%clk 0:02:41]} 7. e3 {[%clk 0:02:51]}  O-O {[%clk 0:02:34]} 8. Bd3 {[%clk 0:02:43]}  Na6 {[%clk 0:02:29]} 9. cxd5 {[%clk 0:02:33]}  cxd5 {[%clk 0:02:20]} 10. Ne5 {[%clk 0:02:31]}  Nb4 {[%clk 0:02:09]} 11. Bb1 {[%clk 0:02:29]}  Ng4 {[%clk 0:01:57]} 12. a3 {[%clk 0:02:11]}  Nc6 {[%clk 0:01:53]} 13. Nxg4 {[%clk 0:02:06]}  Bxg4 {[%clk 0:01:42]} 14. f3 {[%clk 0:02:05]}  Be6 {[%clk 0:01:40]} 15. O-O {[%clk 0:02:03]}  Qb6 {[%clk 0:01:33]} 16. Bd3 {[%clk 0:01:47]}  Na5 {[%clk 0:01:21]} 17. Qe2 {[%clk 0:01:37]}  Nb3 {[%clk 0:01:19]} 18. Rad1 {[%clk 0:01:32]}  Rac8 {[%clk 0:01:08]} 19. Kh1 {[%clk 0:01:30]}  Rfe8 {[%clk 0:00:56]} 20. Bb1 {[%clk 0:01:10]}  Na5 {[%clk 0:00:44]} 21. Ba2 {[%clk 0:01:06]}  Nc4 {[%clk 0:00:44]} 22. Bxc4 {[%clk 0:01:06]}  Rxc4 {[%clk 0:00:42]} 23. Rd2 {[%clk 0:01:01]}  Qc6 {[%clk 0:00:37]} 24. Rfd1 {[%clk 0:00:59]}  Bf5 {[%clk 0:00:25]} 25. e4 {[%clk 0:00:59]}  dxe4 {[%clk 0:00:24]} 26. Nxe4 {[%clk 0:00:40]}  Rc1 {[%clk 0:00:17]} 27. Nc3 {[%clk 0:00:31]}  Rxd1+ {[%clk 0:00:15]} 28. Rxd1 {[%clk 0:00:32]}  Qc7 {[%clk 0:00:15]} 29. Nd5 {[%clk 0:00:22]}  Qd7 {[%clk 0:00:13]} 30. Nxe7+ {[%clk 0:00:18]}  Kf8 {[%clk 0:00:12]} 31. d5 {[%clk 0:00:09]}  f6 {[%clk 0:00:12]} 32. d6 {[%clk 0:00:07]}  fxg5 {[%clk 0:00:12]} 33. hxg5 {[%clk 0:00:07]}  Kf7 {[%clk 0:00:11]} 34. Qc4+ {[%clk 0:00:07]}  Be6 {[%clk 0:00:10]} 35. Qf4+ {[%clk 0:00:07]}  Bf5 {[%clk 0:00:10]} 36. Rd2 {[%clk 0:00:06]}  Bf8 {[%clk 0:00:10]} 37. Nxf5 {[%clk 0:00:02]}  Qxf5 {[%clk 0:00:10]} 38. Qc4+ {[%clk 0:00:03]}  Qe6 {[%clk 0:00:09]} 39. Qc7+ {[%clk 0:00:03]}  Kg8 {[%clk 0:00:08]} 40. Rc2 {[%clk 0:00:02]}  Qe1+ {[%clk 0:00:08]} 41. Kh2 {[%clk 0:00:02]}  Qe5+ {[%clk 0:00:08]} 42. f4 {[%clk 0:00:02]}  Bxd6 {[%clk 0:00:09]} 43. Qd7 {[%clk 0:00:01]}  Qxf4+ {[%clk 0:00:08]} 44. Kg1 {[%clk 0:00:01]}  Re1# {[%clk 0:00:08]} 0-1


[Site "https://www.chess.com"]

[Event "Titled Tuesday Blitz May 24 Early 2022"]
[White "Barria Zuniga, Daniel"]
[Black "Fernandez Barrera, Victor"]
[WhiteFideId "3400816"]
[BlackFideId "2261529"]
[WhiteElo "2414"]
[BlackElo "2189"]
[Result "1-0"]
[Round "08"]
[TimeControl "180+1"]
[Date "2022.05.25"]
[WhiteClock "0:01:37"]
[BlackClock "0:01:48"]

1. c4 {[%clk 0:03:00]}  Nf6 {[%clk 0:02:59]} 2. g3 {[%clk 0:02:51]}  e6 {[%clk 0:02:59]} 3. Bg2 {[%clk 0:02:51]}  d5 {[%clk 0:03:00]} 4. Nf3 {[%clk 0:02:51]}  Be7 {[%clk 0:03:01]} 5. O-O {[%clk 0:02:52]}  O-O {[%clk 0:03:02]} 6. Nc3 {[%clk 0:02:51]}  d4 {[%clk 0:03:00]} 7. Na4 {[%clk 0:02:50]}  c5 {[%clk 0:02:58]} 8. d3 {[%clk 0:02:43]}  Nc6 {[%clk 0:02:42]} 9. e3 {[%clk 0:02:33]}  Ne8 {[%clk 0:02:29]} 10. exd4 {[%clk 0:02:32]}  cxd4 {[%clk 0:02:30]} 11. a3 {[%clk 0:02:32]}  a5 {[%clk 0:02:30]} 12. Bd2 {[%clk 0:02:31]}  Nc7 {[%clk 0:02:12]} 13. Nb6 {[%clk 0:02:16]}  Ra6 {[%clk 0:02:00]} 14. Nxc8 {[%clk 0:02:16]}  Qxc8 {[%clk 0:02:01]} 15. Re1 {[%clk 0:02:09]}  f6 {[%clk 0:02:00]} 16. Qc2 {[%clk 0:02:01]}  a4 {[%clk 0:01:57]} 17. b4 {[%clk 0:01:58]}  axb3 {[%clk 0:01:57]} 18. Qxb3 {[%clk 0:01:58]}  e5 {[%clk 0:01:56]} 19. Reb1 {[%clk 0:01:54]}  Ne6 {[%clk 0:01:47]} 20. Bh3 {[%clk 0:01:40]}  Nc5 {[%clk 0:01:48]} 21. Bxc8 {[%clk 0:01:38]}  Nxb3 {[%clk 0:01:48]} 22. Be6+ {[%clk 0:01:37]} 1-0


[Site "https://www.chess.com"]

[Event "Titled Tuesday Blitz May 24 Early 2022"]
[White "Buscar, Michael"]
[Black "Turutin, Alexander"]
[WhiteFideId "2603616"]
[BlackFideId "4180623"]
[WhiteElo "2010"]
[BlackElo "2402"]
[Result "0-1"]
[Round "08"]
[TimeControl "180+1"]
[Date "2022.05.25"]
[WhiteClock "0:00:07"]
[BlackClock "0:00:21"]

1. b3 {[%clk 0:02:44]}  Nc6 {[%clk 0:02:56]} 2. Bb2 {[%clk 0:02:43]}  e5 {[%clk 0:02:56]} 3. g3 {[%clk 0:02:41]}  Nf6 {[%clk 0:02:56]} 4. Bg2 {[%clk 0:02:42]}  d5 {[%clk 0:02:56]} 5. e3 {[%clk 0:02:43]}  Bg4 {[%clk 0:02:53]} 6. Ne2 {[%clk 0:02:42]}  Qd7 {[%clk 0:02:53]} 7. h3 {[%clk 0:02:41]}  Bf5 {[%clk 0:02:52]} 8. d3 {[%clk 0:02:42]}  h5 {[%clk 0:02:51]} 9. Nd2 {[%clk 0:02:41]}  O-O-O {[%clk 0:02:51]} 10. a3 {[%clk 0:02:38]}  Be7 {[%clk 0:02:29]} 11. Qb1 {[%clk 0:02:35]}  Nh7 {[%clk 0:02:28]} 12. Nf3 {[%clk 0:02:33]}  f6 {[%clk 0:02:25]} 13. Qa2 {[%clk 0:02:17]}  g5 {[%clk 0:02:25]} 14. O-O-O {[%clk 0:02:16]}  Bg6 {[%clk 0:02:15]} 15. b4 {[%clk 0:02:11]}  Nf8 {[%clk 0:02:10]} 16. Nd2 {[%clk 0:02:09]}  Ne6 {[%clk 0:02:10]} 17. Nb3 {[%clk 0:02:07]}  Rhf8 {[%clk 0:02:00]} 18. Kb1 {[%clk 0:01:58]}  f5 {[%clk 0:01:54]} 19. Nc3 {[%clk 0:01:58]}  d4 {[%clk 0:01:38]} 20. Nd5 {[%clk 0:01:20]}  Bd6 {[%clk 0:01:33]} 21. Rhe1 {[%clk 0:01:19]}  a6 {[%clk 0:01:18]} 22. c4 {[%clk 0:01:17]}  dxc3 {[%clk 0:01:17]} 23. Bxc3 {[%clk 0:01:12]}  f4 {[%clk 0:01:17]} 24. Qb2 {[%clk 0:00:59]}  Qh7 {[%clk 0:00:59]} 25. e4 {[%clk 0:00:51]}  g4 {[%clk 0:00:54]} 26. hxg4 {[%clk 0:00:49]}  hxg4 {[%clk 0:00:54]} 27. Rh1 {[%clk 0:00:49]}  Qg7 {[%clk 0:00:45]} 28. gxf4 {[%clk 0:00:22]}  Nxf4 {[%clk 0:00:44]} 29. Nxf4 {[%clk 0:00:21]}  Rxf4 {[%clk 0:00:45]} 30. Rdg1 {[%clk 0:00:18]}  Rdf8 {[%clk 0:00:44]} 31. Be1 {[%clk 0:00:18]}  Bf7 {[%clk 0:00:36]} 32. Nc5 {[%clk 0:00:15]}  Bxc5 {[%clk 0:00:35]} 33. bxc5 {[%clk 0:00:16]}  Qf6 {[%clk 0:00:34]} 34. Bf1 {[%clk 0:00:15]}  Nd4 {[%clk 0:00:33]} 35. Rg3 {[%clk 0:00:14]}  Qc6 {[%clk 0:00:31]} 36. Qb4 {[%clk 0:00:12]}  Qe6 {[%clk 0:00:27]} 37. Qb2 {[%clk 0:00:11]}  Bg8 {[%clk 0:00:25]} 38. Rhg1 {[%clk 0:00:11]}  Nf3 {[%clk 0:00:22]} 39. Bc3 {[%clk 0:00:09]}  Nxg1 {[%clk 0:00:21]} 40. Rxg1 {[%clk 0:00:07]}  Rxf2 {[%clk 0:00:21]} 41. Qc1 {[%clk 0:00:07]}  Qa2# {[%clk 0:00:21]} 0-1


[Site "https://www.chess.com"]

[Event "Titled Tuesday Blitz May 24 Early 2022"]
[White "Chen, Qi b"]
[Black "Ianov, Viktor"]
[WhiteFideId "8614733"]
[BlackFideId "14102730"]
[WhiteElo "2432"]
[BlackElo "2152"]
[Result "0-1"]
[Round "08"]
[TimeControl "180+1"]
[Date "2022.05.25"]
[WhiteClock "0:00:06"]
[BlackClock "0:00:47"]

1. d4 {[%clk 0:03:00]}  d6 {[%clk 0:02:59]} 2. e4 {[%clk 0:02:59]}  Nf6 {[%clk 0:02:59]} 3. Nc3 {[%clk 0:03:00]}  c6 {[%clk 0:02:59]} 4. Be3 {[%clk 0:02:58]}  Nbd7 {[%clk 0:02:56]} 5. f3 {[%clk 0:02:57]}  e5 {[%clk 0:02:56]} 6. Nge2 {[%clk 0:02:57]}  Be7 {[%clk 0:02:56]} 7. Qd2 {[%clk 0:02:56]}  O-O {[%clk 0:02:55]} 8. g4 {[%clk 0:02:56]}  b5 {[%clk 0:02:55]} 9. a3 {[%clk 0:02:56]}  a5 {[%clk 0:02:54]} 10. Bg2 {[%clk 0:02:55]}  Bb7 {[%clk 0:02:54]} 11. O-O {[%clk 0:02:55]}  b4 {[%clk 0:02:54]} 12. axb4 {[%clk 0:02:43]}  axb4 {[%clk 0:02:54]} 13. Na4 {[%clk 0:02:43]}  c5 {[%clk 0:02:43]} 14. dxc5 {[%clk 0:02:24]}  dxc5 {[%clk 0:02:43]} 15. b3 {[%clk 0:02:18]}  Qc7 {[%clk 0:02:38]} 16. Ng3 {[%clk 0:02:17]}  Rfd8 {[%clk 0:02:33]} 17. Qf2 {[%clk 0:02:12]}  g6 {[%clk 0:02:27]} 18. Rfd1 {[%clk 0:02:01]}  Rdc8 {[%clk 0:02:19]} 19. g5 {[%clk 0:01:57]}  Ne8 {[%clk 0:02:17]} 20. Bh3 {[%clk 0:01:57]}  Rd8 {[%clk 0:02:07]} 21. Rab1 {[%clk 0:01:45]}  Ng7 {[%clk 0:01:49]} 22. Bxd7 {[%clk 0:01:40]}  Rxd7 {[%clk 0:01:48]} 23. Rxd7 {[%clk 0:01:41]}  Qxd7 {[%clk 0:01:48]} 24. Nb6 {[%clk 0:01:42]}  Qc6 {[%clk 0:01:43]} 25. Nxa8 {[%clk 0:01:40]}  Bxa8 {[%clk 0:01:44]} 26. Qf1 {[%clk 0:01:17]}  Ne6 {[%clk 0:01:41]} 27. h4 {[%clk 0:01:13]}  Bb7 {[%clk 0:01:41]} 28. Rd1 {[%clk 0:01:12]}  Ba6 {[%clk 0:01:40]} 29. Qf2 {[%clk 0:01:11]}  c4 {[%clk 0:01:40]} 30. Kg2 {[%clk 0:01:01]}  cxb3 {[%clk 0:01:35]} 31. cxb3 {[%clk 0:01:01]}  Qc3 {[%clk 0:01:32]} 32. Rd7 {[%clk 0:00:50]}  Kf8 {[%clk 0:01:29]} 33. Ra7 {[%clk 0:00:31]}  Bd3 {[%clk 0:01:20]} 34. h5 {[%clk 0:00:28]}  Bxg5 {[%clk 0:01:10]} 35. Bxg5 {[%clk 0:00:21]}  Nxg5 {[%clk 0:01:10]} 36. h6 {[%clk 0:00:14]}  Qc8 {[%clk 0:00:55]} 37. Qa2 {[%clk 0:00:06]}  Qh3+ {[%clk 0:00:52]} 38. Kf2 {[%clk 0:00:06]}  Qxh6 {[%clk 0:00:47]} 0-1


[Site "https://www.chess.com"]

[Event "Titled Tuesday Blitz May 24 Early 2022"]
[White "Cherniaiev, Tykhon"]
[Black "Jakubowski, Krzysztof"]
[WhiteFideId "14182360"]
[BlackFideId "1112848"]
[WhiteElo "2289"]
[BlackElo "2365"]
[Result "1-0"]
[Round "08"]
[TimeControl "180+1"]
[Date "2022.05.25"]
[WhiteClock "0:00:36"]
[BlackClock "0:00:02"]

1. Nf3 {[%clk 0:03:00]}  Nf6 {[%clk 0:02:55]} 2. d4 {[%clk 0:02:59]}  d5 {[%clk 0:02:54]} 3. c4 {[%clk 0:02:59]}  e6 {[%clk 0:02:53]} 4. g3 {[%clk 0:02:59]}  Bb4+ {[%clk 0:02:51]} 5. Bd2 {[%clk 0:02:59]}  Be7 {[%clk 0:02:50]} 6. Qc2 {[%clk 0:02:59]}  O-O {[%clk 0:02:49]} 7. Bg2 {[%clk 0:02:59]}  Nbd7 {[%clk 0:02:49]} 8. O-O {[%clk 0:02:58]}  c6 {[%clk 0:02:48]} 9. b3 {[%clk 0:02:56]}  b6 {[%clk 0:02:46]} 10. Nc3 {[%clk 0:02:57]}  Bb7 {[%clk 0:02:45]} 11. e4 {[%clk 0:02:57]}  Rc8 {[%clk 0:02:44]} 12. Rfe1 {[%clk 0:02:54]}  c5 {[%clk 0:02:39]} 13. exd5 {[%clk 0:02:49]}  exd5 {[%clk 0:02:36]} 14. cxd5 {[%clk 0:02:16]}  Nxd5 {[%clk 0:02:04]} 15. Nxd5 {[%clk 0:01:44]}  Bxd5 {[%clk 0:02:02]} 16. Rxe7 {[%clk 0:01:31]}  Qxe7 {[%clk 0:01:19]} 17. Ng5 {[%clk 0:01:30]}  Nf6 {[%clk 0:01:17]} 18. Bxd5 {[%clk 0:01:30]}  cxd4 {[%clk 0:01:01]} 19. Qd3 {[%clk 0:01:27]}  h6 {[%clk 0:00:58]} 20. Bxf7+ {[%clk 0:01:09]}  Rxf7 {[%clk 0:00:41]} 21. Nxf7 {[%clk 0:01:09]}  Kxf7 {[%clk 0:00:35]} 22. Qxd4 {[%clk 0:01:07]}  Rd8 {[%clk 0:00:34]} 23. Qc4+ {[%clk 0:01:06]}  Qe6 {[%clk 0:00:34]} 24. Qxe6+ {[%clk 0:01:04]}  Kxe6 {[%clk 0:00:35]} 25. Bc3 {[%clk 0:01:02]}  Kf5 {[%clk 0:00:31]} 26. Rc1 {[%clk 0:00:55]}  Rd7 {[%clk 0:00:28]} 27. f3 {[%clk 0:00:51]}  Nd5 {[%clk 0:00:26]} 28. Rd1 {[%clk 0:00:48]}  Ke6 {[%clk 0:00:26]} 29. Bb2 {[%clk 0:00:46]}  Rc7 {[%clk 0:00:19]} 30. f4 {[%clk 0:00:43]}  g6 {[%clk 0:00:17]} 31. Re1+ {[%clk 0:00:43]}  Kf7 {[%clk 0:00:16]} 32. Re2 {[%clk 0:00:40]}  Nb4 {[%clk 0:00:15]} 33. Be5 {[%clk 0:00:37]}  Rc1+ {[%clk 0:00:12]} 34. Kg2 {[%clk 0:00:37]}  a5 {[%clk 0:00:11]} 35. Rd2 {[%clk 0:00:36]}  Rc2 {[%clk 0:00:08]} 36. Rxc2 {[%clk 0:00:35]}  Nxc2 {[%clk 0:00:08]} 37. Bc7 {[%clk 0:00:36]}  Nb4 {[%clk 0:00:04]} 38. Bxb6 {[%clk 0:00:36]}  Nxa2 {[%clk 0:00:03]} 39. Bxa5 {[%clk 0:00:36]}  Ke6 {[%clk 0:00:03]} 40. Bd2 {[%clk 0:00:36]}  Kd5 {[%clk 0:00:02]} 41. Kf3 {[%clk 0:00:36]}  Kd4 {[%clk 0:00:02]} 42. Ke2 {[%clk 0:00:36]}  h5 {[%clk 0:00:02]} 43. h3 {[%clk 0:00:36]}  Ke4 {[%clk 0:00:02]} 44. b4 {[%clk 0:00:36]} 1-0


[Site "https://www.chess.com"]

[Event "Titled Tuesday Blitz May 24 Early 2022"]
[White "Clawitter, Craig"]
[Black "Tuleyeva-Aketayeva, Dana"]
[WhiteFideId "2023105"]
[BlackFideId "13701932"]
[WhiteElo "2206"]
[BlackElo "1875"]
[Result "1-0"]
[Round "08"]
[TimeControl "180+1"]
[Date "2022.05.25"]
[WhiteClock "0:00:20"]
[BlackClock "0:00:08"]

1. e4 {[%clk 0:03:00]}  c5 {[%clk 0:02:59]} 2. Nf3 {[%clk 0:03:00]}  Nc6 {[%clk 0:02:58]} 3. d4 {[%clk 0:03:01]}  cxd4 {[%clk 0:02:57]} 4. Nxd4 {[%clk 0:03:02]}  g6 {[%clk 0:02:57]} 5. Nc3 {[%clk 0:03:02]}  Bg7 {[%clk 0:02:56]} 6. Be3 {[%clk 0:03:02]}  Nf6 {[%clk 0:02:56]} 7. Bc4 {[%clk 0:03:02]}  O-O {[%clk 0:02:56]} 8. Bb3 {[%clk 0:03:03]}  d6 {[%clk 0:02:50]} 9. f3 {[%clk 0:03:01]}  Na5 {[%clk 0:02:44]} 10. Qd2 {[%clk 0:02:59]}  Nxb3 {[%clk 0:02:43]} 11. axb3 {[%clk 0:03:00]}  Bd7 {[%clk 0:02:42]} 12. Bh6 {[%clk 0:02:55]}  Bc6 {[%clk 0:02:34]} 13. h4 {[%clk 0:02:54]}  d5 {[%clk 0:02:12]} 14. e5 {[%clk 0:02:20]}  Nh5 {[%clk 0:01:58]} 15. Bxg7 {[%clk 0:02:13]}  Nxg7 {[%clk 0:01:58]} 16. h5 {[%clk 0:02:00]}  Qd7 {[%clk 0:01:15]} 17. O-O-O {[%clk 0:01:44]}  f6 {[%clk 0:01:04]} 18. hxg6 {[%clk 0:01:36]}  hxg6 {[%clk 0:00:38]} 19. Qh6 {[%clk 0:01:30]}  fxe5 {[%clk 0:00:25]} 20. Nxc6 {[%clk 0:00:44]}  bxc6 {[%clk 0:00:24]} 21. Qxg6 {[%clk 0:00:43]}  Rf6 {[%clk 0:00:19]} 22. Qh7+ {[%clk 0:00:37]}  Kf7 {[%clk 0:00:18]} 23. Rhe1 {[%clk 0:00:28]}  Qf5 {[%clk 0:00:17]} 24. Qh2 {[%clk 0:00:25]}  Qf4+ {[%clk 0:00:12]} 25. Qxf4 {[%clk 0:00:26]}  exf4 {[%clk 0:00:12]} 26. Na4 {[%clk 0:00:24]}  Re6 {[%clk 0:00:12]} 27. Nc5 {[%clk 0:00:21]}  Rxe1 {[%clk 0:00:11]} 28. Rxe1 {[%clk 0:00:22]}  Nf5 {[%clk 0:00:11]} 29. Re5 {[%clk 0:00:21]}  Ne3 {[%clk 0:00:11]} 30. Nd3 {[%clk 0:00:19]}  Nxg2 {[%clk 0:00:11]} 31. Nxf4 {[%clk 0:00:19]}  Nxf4 {[%clk 0:00:11]} 32. Rf5+ {[%clk 0:00:20]}  Ke6 {[%clk 0:00:11]} 33. Rxf4 {[%clk 0:00:21]}  Ke5 {[%clk 0:00:12]} 34. Rf7 {[%clk 0:00:20]}  Ke6 {[%clk 0:00:12]} 35. Rh7 {[%clk 0:00:20]}  Rf8 {[%clk 0:00:12]} 36. Rh6+ {[%clk 0:00:20]}  Kd7 {[%clk 0:00:12]} 37. Rh3 {[%clk 0:00:19]}  Rf4 {[%clk 0:00:12]} 38. Kd2 {[%clk 0:00:19]}  a6 {[%clk 0:00:11]} 39. Ke3 {[%clk 0:00:20]}  e5 {[%clk 0:00:10]} 40. Rh7+ {[%clk 0:00:20]}  Kd6 {[%clk 0:00:11]} 41. Rh6+ {[%clk 0:00:20]}  Kc5 {[%clk 0:00:11]} 42. b4+ {[%clk 0:00:21]}  Rxb4 {[%clk 0:00:10]} 43. b3 {[%clk 0:00:21]}  Rf4 {[%clk 0:00:10]} 44. Re6 {[%clk 0:00:20]}  d4+ {[%clk 0:00:10]} 45. Ke2 {[%clk 0:00:20]}  Kd5 {[%clk 0:00:10]} 46. Rh6 {[%clk 0:00:19]}  Rf7 {[%clk 0:00:10]} 47. Rh8 {[%clk 0:00:19]}  Ra7 {[%clk 0:00:10]} 48. Rd8+ {[%clk 0:00:19]}  Kc5 {[%clk 0:00:10]} 49. Re8 {[%clk 0:00:19]}  Kd6 {[%clk 0:00:10]} 50. Rd8+ {[%clk 0:00:19]}  Ke7 {[%clk 0:00:10]} 51. Rc8 {[%clk 0:00:19]}  Kd7 {[%clk 0:00:10]} 52. Rh8 {[%clk 0:00:19]}  a5 {[%clk 0:00:10]} 53. Rh7+ {[%clk 0:00:19]}  Kd6 {[%clk 0:00:08]} 54. Rxa7 {[%clk 0:00:20]} 1-0


[Site "https://www.chess.com"]